[Event "Titled Tuesday Blitz March 08 Early 2022"]
[White "Caruana, Fabiano"]
[Black "Weetik, Vjacheslav"]
[WhiteFideId "2020009"]
[BlackFideId "4153472"]
[WhiteElo "2744"]
[BlackElo "2469"]
[Result "0-1"]
[Round "03"]
[TimeControl "180+1"]
[Date "2022.03.08"]
[WhiteClock "0:00:11"]
[BlackClock "0:00:06"]

1. d4 {[%clk 0:03:00]}  Nf6 {[%clk 0:02:59]} 2. Nf3 {[%clk 0:03:00]}  g6 {[%clk 0:02:59]} 3. Nbd2 {[%clk 0:03:00]}  d5 {[%clk 0:02:59]} 4. b4 {[%clk 0:02:58]}  Bg7 {[%clk 0:02:59]} 5. e3 {[%clk 0:02:58]}  O-O {[%clk 0:02:59]} 6. Bb2 {[%clk 0:02:56]}  b6 {[%clk 0:02:53]} 7. c4 {[%clk 0:02:56]}  e6 {[%clk 0:02:50]} 8. c5 {[%clk 0:02:52]}  Ne4 {[%clk 0:02:47]} 9. Bd3 {[%clk 0:02:45]}  f5 {[%clk 0:02:41]} 10. Rc1 {[%clk 0:02:37]}  a5 {[%clk 0:02:38]} 11. cxb6 {[%clk 0:02:37]}  cxb6 {[%clk 0:02:37]} 12. b5 {[%clk 0:02:37]}  Nd7 {[%clk 0:02:26]} 13. Ba3 {[%clk 0:02:27]}  Re8 {[%clk 0:02:18]} 14. O-O {[%clk 0:02:25]}  Bb7 {[%clk 0:02:18]} 15. Qb3 {[%clk 0:02:04]}  a4 {[%clk 0:02:16]} 16. Qb2 {[%clk 0:01:59]}  e5 {[%clk 0:02:13]} 17. Be2 {[%clk 0:01:51]}  f4 {[%clk 0:02:00]} 18. Nxe4 {[%clk 0:01:42]}  dxe4 {[%clk 0:02:00]} 19. Bc4+ {[%clk 0:01:42]}  Kh8 {[%clk 0:02:00]} 20. Nxe5 {[%clk 0:01:42]}  Nxe5 {[%clk 0:02:01]} 21. dxe5 {[%clk 0:01:43]}  Bxe5 {[%clk 0:02:01]} 22. Qc2 {[%clk 0:01:33]}  f3 {[%clk 0:02:01]} 23. g3 {[%clk 0:01:32]}  Rc8 {[%clk 0:01:47]} 24. Rfd1 {[%clk 0:01:31]}  Qf6 {[%clk 0:01:44]} 25. Qxa4 {[%clk 0:01:30]}  h5 {[%clk 0:01:30]} 26. Bf1 {[%clk 0:01:24]}  Ra8 {[%clk 0:01:18]} 27. Qb3 {[%clk 0:01:20]}  h4 {[%clk 0:01:19]} 28. g4 {[%clk 0:00:40]}  h3 {[%clk 0:01:15]} 29. Kh1 {[%clk 0:00:33]}  Qh4 {[%clk 0:00:59]} 30. Bb2 {[%clk 0:00:23]}  Qxf2 {[%clk 0:00:47]} 31. Bxe5+ {[%clk 0:00:23]}  Rxe5 {[%clk 0:00:48]} 32. Qc3 {[%clk 0:00:22]}  Re8 {[%clk 0:00:47]} 33. Rd8 {[%clk 0:00:22]}  Kh7 {[%clk 0:00:27]} 34. Rxe8 {[%clk 0:00:22]}  Rxe8 {[%clk 0:00:27]} 35. Qf6 {[%clk 0:00:22]}  Rc8 {[%clk 0:00:17]} 36. Rd1 {[%clk 0:00:22]}  Rc7 {[%clk 0:00:18]} 37. Qe5 {[%clk 0:00:17]}  Rf7 {[%clk 0:00:15]} 38. Qe6 {[%clk 0:00:17]}  Rg7 {[%clk 0:00:13]} 39. Qf6 {[%clk 0:00:17]}  Bd5 {[%clk 0:00:13]} 40. Qg5 {[%clk 0:00:16]}  Bxa2 {[%clk 0:00:08]} 41. Qf4 {[%clk 0:00:13]}  Bc4 {[%clk 0:00:08]} 42. Qg3 {[%clk 0:00:12]}  Qxg3 {[%clk 0:00:08]} 43. hxg3 {[%clk 0:00:13]}  Bxf1 {[%clk 0:00:08]} 44. Rxf1 {[%clk 0:00:14]}  Rd7 {[%clk 0:00:09]} 45. Kh2 {[%clk 0:00:14]}  Rd3 {[%clk 0:00:09]} 46. Re1 {[%clk 0:00:14]}  Rxe3 {[%clk 0:00:08]} 47. Rxe3 {[%clk 0:00:14]}  f2 {[%clk 0:00:08]} 48. Kxh3 {[%clk 0:00:13]}  f1=Q+ {[%clk 0:00:09]} 49. Kh4 {[%clk 0:00:14]}  Qd3 {[%clk 0:00:08]} 50. Re1 {[%clk 0:00:13]}  e3 {[%clk 0:00:07]} 51. Kg5 {[%clk 0:00:14]}  Qd2 {[%clk 0:00:07]} 52. Rh1+ {[%clk 0:00:13]}  Kg7 {[%clk 0:00:07]} 53. Rf1 {[%clk 0:00:11]}  e2+ {[%clk 0:00:07]} 54. Rf4 {[%clk 0:00:12]}  e1=Q {[%clk 0:00:08]} 55. Kh4 {[%clk 0:00:11]}  Qxf4 {[%clk 0:00:06]} 0-1


[Site "https://www.chess.com"]

[Event "Titled Tuesday Blitz March 08 Early 2022"]
[White "Chigaev, Maksim"]
[Black "Samant Aditya S"]
[WhiteFideId "4108116"]
[BlackFideId "35080580"]
[WhiteElo "2502"]
[BlackElo "1916"]
[Result "0-1"]
[Round "03"]
[TimeControl "180+1"]
[Date "2022.03.08"]
[WhiteClock "0:01:25"]
[BlackClock "0:00:37"]

1. e4 {[%clk 0:03:00]}  c5 {[%clk 0:02:59]} 2. Nf3 {[%clk 0:02:57]}  d6 {[%clk 0:03:00]} 3. Bb5+ {[%clk 0:02:55]}  Bd7 {[%clk 0:03:00]} 4. Bxd7+ {[%clk 0:02:55]}  Qxd7 {[%clk 0:03:01]} 5. O-O {[%clk 0:02:54]}  Nc6 {[%clk 0:02:58]} 6. c3 {[%clk 0:02:53]}  Nf6 {[%clk 0:02:58]} 7. Qe2 {[%clk 0:02:53]}  e6 {[%clk 0:02:56]} 8. d4 {[%clk 0:02:53]}  cxd4 {[%clk 0:02:57]} 9. cxd4 {[%clk 0:02:54]}  d5 {[%clk 0:02:57]} 10. e5 {[%clk 0:02:55]}  Ne4 {[%clk 0:02:58]} 11. Be3 {[%clk 0:02:55]}  Be7 {[%clk 0:02:52]} 12. Ne1 {[%clk 0:02:54]}  f5 {[%clk 0:02:42]} 13. f3 {[%clk 0:02:51]}  Ng5 {[%clk 0:02:42]} 14. Nd3 {[%clk 0:02:50]}  O-O {[%clk 0:02:40]} 15. Nd2 {[%clk 0:02:47]}  Rac8 {[%clk 0:02:28]} 16. Rfc1 {[%clk 0:02:42]}  b6 {[%clk 0:02:25]} 17. Rc2 {[%clk 0:02:29]}  Nxd4 {[%clk 0:02:20]} 18. Bxd4 {[%clk 0:02:26]}  Rxc2 {[%clk 0:02:20]} 19. Qe3 {[%clk 0:02:10]}  Rfc8 {[%clk 0:02:11]} 20. a4 {[%clk 0:02:02]}  Ne4 {[%clk 0:00:42]} 21. fxe4 {[%clk 0:01:42]}  dxe4 {[%clk 0:00:43]} 22. Ne1 {[%clk 0:01:42]}  f4 {[%clk 0:00:41]} 23. Qxe4 {[%clk 0:01:25]}  Rxd2 {[%clk 0:00:41]} 24. Nf3 {[%clk 0:01:25]}  Rxd4 {[%clk 0:00:37]} 0-1


[Site "https://www.chess.com"]

[Event "Titled Tuesday Blitz March 08 Early 2022"]
[White "Cori T., Deysi"]
[Black "Matveeva, Olga"]
[WhiteFideId "3801934"]
[BlackFideId "24107018"]
[WhiteElo "2341"]
[BlackElo "2083"]
[Result "1-0"]
[Round "03"]
[TimeControl "180+1"]
[Date "2022.03.09"]
[WhiteClock "0:01:55"]
[BlackClock "0:00:50"]

1. d4 {[%clk 0:03:00]}  Nf6 {[%clk 0:02:59]} 2. Nf3 {[%clk 0:03:00]}  g6 {[%clk 0:02:58]} 3. g3 {[%clk 0:02:59]}  Bg7 {[%clk 0:02:59]} 4. Bg2 {[%clk 0:03:00]}  O-O {[%clk 0:02:59]} 5. O-O {[%clk 0:03:00]}  d6 {[%clk 0:02:59]} 6. Nbd2 {[%clk 0:02:59]}  c5 {[%clk 0:02:51]} 7. dxc5 {[%clk 0:02:55]}  dxc5 {[%clk 0:02:52]} 8. Nb3 {[%clk 0:02:55]}  Nbd7 {[%clk 0:02:47]} 9. c4 {[%clk 0:02:54]}  Qc7 {[%clk 0:02:45]} 10. Bf4 {[%clk 0:02:53]}  e5 {[%clk 0:02:44]} 11. Bg5 {[%clk 0:02:52]}  Nb6 {[%clk 0:02:38]} 12. Qc1 {[%clk 0:02:51]}  Be6 {[%clk 0:02:37]} 13. Nfd2 {[%clk 0:02:50]}  h6 {[%clk 0:02:29]} 14. Bxf6 {[%clk 0:02:46]}  Bxf6 {[%clk 0:02:29]} 15. Ne4 {[%clk 0:02:47]}  Bg7 {[%clk 0:02:27]} 16. Nexc5 {[%clk 0:02:42]}  Bxc4 {[%clk 0:02:25]} 17. Bxb7 {[%clk 0:02:39]}  Rad8 {[%clk 0:02:11]} 18. Bf3 {[%clk 0:02:38]}  f5 {[%clk 0:01:56]} 19. Ne6 {[%clk 0:02:37]}  Qf7 {[%clk 0:01:46]} 20. Nxf8 {[%clk 0:02:11]}  Qxf8 {[%clk 0:01:47]} 21. Nd2 {[%clk 0:02:08]}  Be6 {[%clk 0:01:44]} 22. e4 {[%clk 0:02:07]}  fxe4 {[%clk 0:01:28]} 23. Bxe4 {[%clk 0:02:05]}  Kh7 {[%clk 0:01:27]} 24. Qc2 {[%clk 0:02:04]}  Bf5 {[%clk 0:01:19]} 25. Rad1 {[%clk 0:02:00]}  Rd6 {[%clk 0:01:01]} 26. Nf3 {[%clk 0:01:56]}  Bh3 {[%clk 0:00:55]} 27. Rxd6 {[%clk 0:01:55]}  Qxd6 {[%clk 0:00:54]} 28. Rd1 {[%clk 0:01:55]}  Qf6 {[%clk 0:00:50]} 29. Nh4 {[%clk 0:01:55]} 1-0


[Site "https://www.chess.com"]

[Event "Titled Tuesday Blitz March 08 Early 2022"]
[White "Daianu, Cristian-Clement"]
[Black "Madaminov, Mukhiddin"]
[WhiteFideId "1208926"]
[BlackFideId "14210703"]
[WhiteElo "2159"]
[BlackElo "1916"]
[Result "0-1"]
[Round "03"]
[TimeControl "180+1"]
[Date "2022.03.09"]
[WhiteClock "0:02:06"]
[BlackClock "0:01:50"]

1. e4 {[%clk 0:02:40]}  e6 {[%clk 0:02:55]} 2. d4 {[%clk 0:02:40]}  d5 {[%clk 0:02:54]} 3. Nd2 {[%clk 0:02:41]}  c5 {[%clk 0:02:54]} 4. Ngf3 {[%clk 0:02:40]}  cxd4 {[%clk 0:02:54]} 5. exd5 {[%clk 0:02:40]}  Qxd5 {[%clk 0:02:53]} 6. Bc4 {[%clk 0:02:41]}  Qd7 {[%clk 0:02:52]} 7. Nb3 {[%clk 0:02:36]}  Nc6 {[%clk 0:02:50]} 8. Qe2 {[%clk 0:02:36]}  Nf6 {[%clk 0:02:49]} 9. Bg5 {[%clk 0:02:36]}  Bb4+ {[%clk 0:02:46]} 10. Bd2 {[%clk 0:02:32]}  Bxd2+ {[%clk 0:02:42]} 11. Qxd2 {[%clk 0:02:33]}  e5 {[%clk 0:02:43]} 12. O-O-O {[%clk 0:02:33]}  O-O {[%clk 0:02:42]} 13. Kb1 {[%clk 0:02:33]}  Qc7 {[%clk 0:02:40]} 14. Rhe1 {[%clk 0:02:32]}  Bg4 {[%clk 0:02:39]} 15. h3 {[%clk 0:02:31]}  Bxf3 {[%clk 0:02:38]} 16. gxf3 {[%clk 0:02:32]}  Rac8 {[%clk 0:02:25]} 17. Rg1 {[%clk 0:02:31]}  Nh5 {[%clk 0:02:23]} 18. Qg5 {[%clk 0:02:24]}  Nb4 {[%clk 0:02:16]} 19. Bd3 {[%clk 0:02:08]}  Nxd3 {[%clk 0:02:07]} 20. cxd3 {[%clk 0:02:08]}  Qc2+ {[%clk 0:01:50]} 21. Ka1 {[%clk 0:02:08]}  g6 {[%clk 0:01:50]} 22. Qxh5 {[%clk 0:02:06]}  Qxd1+ {[%clk 0:01:50]} 0-1


[Site "https://www.chess.com"]

[Event "Titled Tuesday Blitz March 08 Early 2022"]
[White "Daneshvar, Bardiya"]
[Black "Mitusov, Semen"]
[WhiteFideId "12576468"]
[BlackFideId "14151049"]
[WhiteElo "2295"]
[BlackElo "2265"]
[Result "1-0"]
[Round "03"]
[TimeControl "180+1"]
[Date "2022.03.08"]
[WhiteClock "0:01:43"]
[BlackClock "0:00:02"]

1. d4 {[%clk 0:03:00]}  d5 {[%clk 0:02:55]} 2. c4 {[%clk 0:03:01]}  dxc4 {[%clk 0:02:51]} 3. e4 {[%clk 0:03:01]}  Nf6 {[%clk 0:02:49]} 4. e5 {[%clk 0:02:58]}  Nd5 {[%clk 0:02:49]} 5. Bxc4 {[%clk 0:02:59]}  Nb6 {[%clk 0:02:49]} 6. Bd3 {[%clk 0:02:59]}  Nc6 {[%clk 0:02:49]} 7. Be3 {[%clk 0:02:56]}  e6 {[%clk 0:02:44]} 8. Nc3 {[%clk 0:02:53]}  Nb4 {[%clk 0:02:44]} 9. Be4 {[%clk 0:02:53]}  Be7 {[%clk 0:02:41]} 10. Nge2 {[%clk 0:02:52]}  N4d5 {[%clk 0:02:38]} 11. O-O {[%clk 0:02:50]}  Bd7 {[%clk 0:02:36]} 12. Nxd5 {[%clk 0:02:49]}  exd5 {[%clk 0:02:29]} 13. Bd3 {[%clk 0:02:49]}  Be6 {[%clk 0:02:18]} 14. f4 {[%clk 0:02:49]}  f5 {[%clk 0:02:17]} 15. g4 {[%clk 0:02:47]}  Qd7 {[%clk 0:02:13]} 16. Ng3 {[%clk 0:02:47]}  fxg4 {[%clk 0:01:48]} 17. f5 {[%clk 0:02:29]}  Bf7 {[%clk 0:01:48]} 18. e6 {[%clk 0:02:28]}  Bxe6 {[%clk 0:01:48]} 19. fxe6 {[%clk 0:02:29]}  Qxe6 {[%clk 0:01:48]} 20. Qe2 {[%clk 0:02:25]}  Nc4 {[%clk 0:01:46]} 21. Rae1 {[%clk 0:02:22]}  Bd6 {[%clk 0:01:35]} 22. Bg5 {[%clk 0:02:16]}  Qxe2 {[%clk 0:01:31]} 23. Rxe2+ {[%clk 0:02:17]}  Kd7 {[%clk 0:01:31]} 24. Rf7+ {[%clk 0:02:16]}  Kc6 {[%clk 0:01:31]} 25. b3 {[%clk 0:02:17]}  Na3 {[%clk 0:01:23]} 26. Nf5 {[%clk 0:02:15]}  Rhe8 {[%clk 0:01:21]} 27. Ne7+ {[%clk 0:02:13]}  Bxe7 {[%clk 0:01:12]} 28. Bxe7 {[%clk 0:02:14]}  Nb5 {[%clk 0:01:09]} 29. Rc2+ {[%clk 0:02:13]}  Kb6 {[%clk 0:01:06]} 30. a4 {[%clk 0:02:13]}  Nd6 {[%clk 0:01:00]} 31. Bxd6 {[%clk 0:02:11]}  cxd6 {[%clk 0:01:00]} 32. b4 {[%clk 0:02:11]}  a5 {[%clk 0:00:57]} 33. Rb2 {[%clk 0:02:11]}  Re3 {[%clk 0:00:49]} 34. Bf1 {[%clk 0:02:09]}  Rb8 {[%clk 0:00:40]} 35. Rd7 {[%clk 0:02:06]}  axb4 {[%clk 0:00:39]} 36. Rxb4+ {[%clk 0:02:06]}  Ka5 {[%clk 0:00:38]} 37. Rb1 {[%clk 0:02:04]}  Kxa4 {[%clk 0:00:33]} 38. Rxd6 {[%clk 0:02:05]}  Rb3 {[%clk 0:00:33]} 39. Ra1+ {[%clk 0:02:03]}  Kb4 {[%clk 0:00:31]} 40. Rxd5 {[%clk 0:02:03]}  Kc3 {[%clk 0:00:28]} 41. Rc1+ {[%clk 0:02:02]}  Kd2 {[%clk 0:00:28]} 42. Rdc5 {[%clk 0:02:02]}  Rd8 {[%clk 0:00:23]} 43. R5c2+ {[%clk 0:01:56]}  Ke3 {[%clk 0:00:23]} 44. Re1+ {[%clk 0:01:56]}  Kf4 {[%clk 0:00:21]} 45. Rd2 {[%clk 0:01:56]}  Re3 {[%clk 0:00:17]} 46. Red1 {[%clk 0:01:56]}  g3 {[%clk 0:00:14]} 47. h3 {[%clk 0:01:54]}  Re7 {[%clk 0:00:07]} 48. d5 {[%clk 0:01:54]}  Red7 {[%clk 0:00:07]} 49. Bg2 {[%clk 0:01:49]}  Rd6 {[%clk 0:00:06]} 50. Re2 {[%clk 0:01:47]}  h5 {[%clk 0:00:04]} 51. h4 {[%clk 0:01:46]}  Kf5 {[%clk 0:00:03]} 52. Rf1+ {[%clk 0:01:44]}  Kg6 {[%clk 0:00:03]} 53. Re3 {[%clk 0:01:43]}  Kh6 {[%clk 0:00:02]} 54. Rxg3 {[%clk 0:01:44]}  b5 {[%clk 0:00:02]} 55. Rb1 {[%clk 0:01:42]}  Rb8 {[%clk 0:00:02]} 56. Rb4 {[%clk 0:01:43]} 1-0


[Site "https://www.chess.com"]

[Event "Titled Tuesday Blitz March 08 Early 2022"]
[White "Derraugh, Geordie"]
[Black "Arabidze, Meri"]
[WhiteFideId "2603950"]
[BlackFideId "13604040"]
[WhiteElo "2116"]
[BlackElo "2335"]
[Result "1/2-1/2"]
[Round "03"]
[TimeControl "180+1"]
[Date "2022.03.09"]
[WhiteClock "0:00:08"]
[BlackClock "0:00:04"]

1. e4 {[%clk 0:03:00]}  c5 {[%clk 0:03:00]} 2. c3 {[%clk 0:03:00]}  e6 {[%clk 0:02:59]} 3. Nf3 {[%clk 0:02:58]}  d5 {[%clk 0:03:00]} 4. exd5 {[%clk 0:02:59]}  exd5 {[%clk 0:03:00]} 5. d4 {[%clk 0:02:59]}  Nc6 {[%clk 0:03:01]} 6. Bb5 {[%clk 0:02:58]}  Bd6 {[%clk 0:03:01]} 7. O-O {[%clk 0:02:58]}  cxd4 {[%clk 0:03:01]} 8. Nxd4 {[%clk 0:02:57]}  Ne7 {[%clk 0:03:02]} 9. Re1 {[%clk 0:02:52]}  O-O {[%clk 0:03:02]} 10. Bg5 {[%clk 0:02:49]}  Qc7 {[%clk 0:03:02]} 11. h3 {[%clk 0:02:44]}  a6 {[%clk 0:03:02]} 12. Ba4 {[%clk 0:02:43]}  Ng6 {[%clk 0:02:55]} 13. Bc2 {[%clk 0:02:37]}  Bf4 {[%clk 0:02:30]} 14. Bxf4 {[%clk 0:02:36]}  Qxf4 {[%clk 0:02:31]} 15. Ne2 {[%clk 0:02:26]}  Qg5 {[%clk 0:02:28]} 16. Ng3 {[%clk 0:02:16]}  Be6 {[%clk 0:02:23]} 17. Nd2 {[%clk 0:02:16]}  Rad8 {[%clk 0:01:53]} 18. Nf3 {[%clk 0:02:11]}  Qf4 {[%clk 0:01:52]} 19. Qd3 {[%clk 0:02:00]}  Rd7 {[%clk 0:01:22]} 20. Rad1 {[%clk 0:01:50]}  Rfd8 {[%clk 0:01:22]} 21. a3 {[%clk 0:01:11]}  Qc7 {[%clk 0:01:16]} 22. h4 {[%clk 0:01:01]}  d4 {[%clk 0:01:08]} 23. c4 {[%clk 0:00:47]}  Nce7 {[%clk 0:00:53]} 24. b3 {[%clk 0:00:40]}  h6 {[%clk 0:00:29]} 25. h5 {[%clk 0:00:37]}  Nf8 {[%clk 0:00:28]} 26. Qe4 {[%clk 0:00:23]}  Nc6 {[%clk 0:00:21]} 27. Qh4 {[%clk 0:00:20]}  b5 {[%clk 0:00:20]} 28. cxb5 {[%clk 0:00:18]}  axb5 {[%clk 0:00:21]} 29. Bf5 {[%clk 0:00:14]}  d3 {[%clk 0:00:20]} 30. Bxe6 {[%clk 0:00:07]}  Nxe6 {[%clk 0:00:21]} 31. Nf5 {[%clk 0:00:07]}  d2 {[%clk 0:00:21]} 32. Re2 {[%clk 0:00:08]}  Qa5 {[%clk 0:00:17]} 33. b4 {[%clk 0:00:06]}  Qa4 {[%clk 0:00:16]} 34. Rdxd2 {[%clk 0:00:05]}  Rxd2 {[%clk 0:00:14]} 35. Rxd2 {[%clk 0:00:06]}  Rxd2 {[%clk 0:00:14]} 36. Nxd2 {[%clk 0:00:07]}  Qxa3 {[%clk 0:00:11]} 37. Qg4 {[%clk 0:00:06]}  Qc1+ {[%clk 0:00:11]} 38. Nf1 {[%clk 0:00:07]}  Qg5 {[%clk 0:00:08]} 39. Qe4 {[%clk 0:00:03]}  Qc1 {[%clk 0:00:05]} 40. Ng3 {[%clk 0:00:02]}  Qc4 {[%clk 0:00:04]} 41. Qxc4 {[%clk 0:00:02]}  bxc4 {[%clk 0:00:05]} 42. Ne4 {[%clk 0:00:02]}  Nxb4 {[%clk 0:00:04]} 43. Ne3 {[%clk 0:00:03]}  Nd3 {[%clk 0:00:04]} 44. Nxc4 {[%clk 0:00:03]}  Ndf4 {[%clk 0:00:04]} 45. g4 {[%clk 0:00:02]}  Nd4 {[%clk 0:00:03]} 46. Ne3 {[%clk 0:00:02]}  Nde2+ {[%clk 0:00:03]} 47. Kh2 {[%clk 0:00:03]}  f6 {[%clk 0:00:03]} 48. Nf5 {[%clk 0:00:03]}  Kf7 {[%clk 0:00:03]} 49. Neg3 {[%clk 0:00:04]}  Nxg3 {[%clk 0:00:03]} 50. Kxg3 {[%clk 0:00:04]}  Ne6 {[%clk 0:00:04]} 51. f4 {[%clk 0:00:04]}  Nc5 {[%clk 0:00:04]} 52. Ne3 {[%clk 0:00:04]}  Ne4+ {[%clk 0:00:04]} 53. Kf3 {[%clk 0:00:05]}  Nd6 {[%clk 0:00:04]} 54. Nd5 {[%clk 0:00:05]}  Ke6 {[%clk 0:00:04]} 55. Ne3 {[%clk 0:00:05]}  Nb7 {[%clk 0:00:04]} 56. Ng2 {[%clk 0:00:06]}  Kf7 {[%clk 0:00:04]} 57. Nh4 {[%clk 0:00:06]}  Nc5 {[%clk 0:00:05]} 58. Nf5 {[%clk 0:00:07]}  Ne6 {[%clk 0:00:05]} 59. Ke4 {[%clk 0:00:07]}  Nc5+ {[%clk 0:00:05]} 60. Kd5 {[%clk 0:00:07]}  Nd3 {[%clk 0:00:05]} 61. Nd6+ {[%clk 0:00:06]}  Kf8 {[%clk 0:00:05]} 62. Ke4 {[%clk 0:00:06]}  Nf2+ {[%clk 0:00:05]} 63. Kf3 {[%clk 0:00:07]}  Nd1 {[%clk 0:00:05]} 64. Ke4 {[%clk 0:00:07]}  Kg8 {[%clk 0:00:05]} 65. Nf5 {[%clk 0:00:06]}  Kf7 {[%clk 0:00:04]} 66. Ne3 {[%clk 0:00:06]}  Nf2+ {[%clk 0:00:04]} 67. Kf3 {[%clk 0:00:06]}  Nd3 {[%clk 0:00:05]} 68. Nf1 {[%clk 0:00:06]}  Nc5 {[%clk 0:00:04]} 69. Ng3 {[%clk 0:00:06]}  Nd7 {[%clk 0:00:04]} 70. Ne4 {[%clk 0:00:06]}  Nf8 {[%clk 0:00:03]} 71. g5 {[%clk 0:00:07]}  fxg5 {[%clk 0:00:03]} 72. fxg5 {[%clk 0:00:08]}  Ne6 {[%clk 0:00:03]} 73. gxh6 {[%clk 0:00:07]}  gxh6 {[%clk 0:00:04]} 74. Kg4 {[%clk 0:00:07]}  Ng7 {[%clk 0:00:04]} 75. Ng3 {[%clk 0:00:08]}  Nxh5 {[%clk 0:00:04]} 76. Kxh5 {[%clk 0:00:07]}  Kf8 {[%clk 0:00:04]} 77. Kxh6 {[%clk 0:00:08]} 1/2-1/2


[Site "https://www.chess.com"]

[Event "Titled Tuesday Blitz March 08 Early 2022"]
[White "Domingo Nunez, Alejandro"]
[Black "Bachmann, Axel"]
[WhiteFideId "22245561"]
[BlackFideId "3700488"]
[WhiteElo "2578"]
[BlackElo "2808"]
[Result "0-1"]
[Round "03"]
[TimeControl "180+1"]
[Date "2022.03.09"]
[WhiteClock "0:00:06"]
[BlackClock "0:00:15"]

1. Nf3 {[%clk 0:02:57]}  Nf6 {[%clk 0:02:56]} 2. c4 {[%clk 0:02:55]}  b6 {[%clk 0:02:55]} 3. Nc3 {[%clk 0:02:54]}  Bb7 {[%clk 0:02:55]} 4. g3 {[%clk 0:02:53]}  g6 {[%clk 0:02:53]} 5. Bg2 {[%clk 0:02:53]}  Bg7 {[%clk 0:02:53]} 6. O-O {[%clk 0:02:53]}  O-O {[%clk 0:02:53]} 7. d4 {[%clk 0:02:45]}  Ne4 {[%clk 0:02:50]} 8. Nxe4 {[%clk 0:02:26]}  Bxe4 {[%clk 0:02:51]} 9. d5 {[%clk 0:02:19]}  c5 {[%clk 0:02:40]} 10. Qb3 {[%clk 0:02:15]}  d6 {[%clk 0:02:21]} 11. Bh3 {[%clk 0:02:10]}  Bxf3 {[%clk 0:02:18]} 12. Qxf3 {[%clk 0:02:10]}  Nd7 {[%clk 0:02:19]} 13. e4 {[%clk 0:02:03]}  b5 {[%clk 0:02:14]} 14. cxb5 {[%clk 0:02:01]}  a6 {[%clk 0:02:14]} 15. bxa6 {[%clk 0:02:00]}  Rxa6 {[%clk 0:02:15]} 16. Qe2 {[%clk 0:02:00]}  Ra7 {[%clk 0:02:11]} 17. Be3 {[%clk 0:01:58]}  Nb6 {[%clk 0:02:08]} 18. a3 {[%clk 0:01:27]}  Na4 {[%clk 0:01:51]} 19. Rab1 {[%clk 0:01:27]}  Rb7 {[%clk 0:01:50]} 20. Qa6 {[%clk 0:01:20]}  Qa8 {[%clk 0:01:43]} 21. Qc6 {[%clk 0:00:42]}  Rxb2 {[%clk 0:01:19]} 22. Bg5 {[%clk 0:00:40]}  Rxb1 {[%clk 0:01:07]} 23. Rxb1 {[%clk 0:00:40]}  Nc3 {[%clk 0:01:07]} 24. Re1 {[%clk 0:00:33]}  Qa7 {[%clk 0:00:58]} 25. Bd7 {[%clk 0:00:28]}  Rd8 {[%clk 0:00:49]} 26. Bxe7 {[%clk 0:00:07]}  Qxd7 {[%clk 0:00:47]} 27. Bxd8 {[%clk 0:00:08]}  Qxd8 {[%clk 0:00:48]} 28. f4 {[%clk 0:00:08]}  Bd4+ {[%clk 0:00:48]} 29. Kg2 {[%clk 0:00:07]}  Qb8 {[%clk 0:00:48]} 30. e5 {[%clk 0:00:06]}  dxe5 {[%clk 0:00:40]} 31. d6 {[%clk 0:00:06]}  e4 {[%clk 0:00:19]} 32. d7 {[%clk 0:00:05]}  Qd8 {[%clk 0:00:20]} 33. a4 {[%clk 0:00:04]}  Kg7 {[%clk 0:00:14]} 34. Qc8 {[%clk 0:00:03]}  Bf6 {[%clk 0:00:14]} 35. Qxd8 {[%clk 0:00:02]}  Bxd8 {[%clk 0:00:15]} 36. Rc1 {[%clk 0:00:03]}  Nxa4 {[%clk 0:00:15]} 37. Rc4 {[%clk 0:00:03]}  Nb6 {[%clk 0:00:15]} 38. Rxc5 {[%clk 0:00:04]}  Kf6 {[%clk 0:00:14]} 39. Rc6+ {[%clk 0:00:04]}  Ke7 {[%clk 0:00:15]} 40. f5 {[%clk 0:00:04]}  Kxd7 {[%clk 0:00:15]} 41. fxg6 {[%clk 0:00:03]}  hxg6 {[%clk 0:00:14]} 42. Rc5 {[%clk 0:00:03]}  Kd6 {[%clk 0:00:13]} 43. Rb5 {[%clk 0:00:03]}  Nd5 {[%clk 0:00:13]} 44. Kf2 {[%clk 0:00:04]}  f5 {[%clk 0:00:13]} 45. Rb8 {[%clk 0:00:04]}  Bc7 {[%clk 0:00:13]} 46. Rg8 {[%clk 0:00:05]}  Ne7 {[%clk 0:00:13]} 47. Rg7 {[%clk 0:00:05]}  Ke6 {[%clk 0:00:14]} 48. Ke2 {[%clk 0:00:05]}  Be5 {[%clk 0:00:15]} 49. Rh7 {[%clk 0:00:06]}  Nd5 {[%clk 0:00:14]} 50. h4 {[%clk 0:00:06]}  Bxg3 {[%clk 0:00:14]} 51. h5 {[%clk 0:00:07]}  Nf4+ {[%clk 0:00:14]} 52. Kf1 {[%clk 0:00:07]}  Nxh5 {[%clk 0:00:15]} 53. Rxh5 {[%clk 0:00:06]}  gxh5 {[%clk 0:00:15]} 0-1


[Site "https://www.chess.com"]

[Event "Titled Tuesday Blitz March 08 Early 2022"]
[White "Fier, Alexandr"]
[Black "Budrewicz, Krzysztof"]
[WhiteFideId "2107139"]
[BlackFideId "1127950"]
[WhiteElo "2571"]
[BlackElo "2248"]
[Result "1-0"]
[Round "03"]
[TimeControl "180+1"]
[Date "2022.03.08"]
[WhiteClock "0:00:28"]
[BlackClock "0:00:01"]

1. b3 {[%clk 0:03:00]}  Nf6 {[%clk 0:02:58]} 2. Bb2 {[%clk 0:03:01]}  g6 {[%clk 0:02:58]} 3. f4 {[%clk 0:03:01]}  Bg7 {[%clk 0:02:58]} 4. Nf3 {[%clk 0:03:02]}  O-O {[%clk 0:02:58]} 5. e3 {[%clk 0:03:02]}  c5 {[%clk 0:02:56]} 6. Be2 {[%clk 0:03:02]}  Nc6 {[%clk 0:02:56]} 7. O-O {[%clk 0:03:02]}  d5 {[%clk 0:02:55]} 8. d3 {[%clk 0:03:02]}  d4 {[%clk 0:02:54]} 9. e4 {[%clk 0:02:55]}  Ng4 {[%clk 0:02:52]} 10. Bc1 {[%clk 0:02:55]}  Ne3 {[%clk 0:02:32]} 11. Bxe3 {[%clk 0:02:55]}  dxe3 {[%clk 0:02:33]} 12. c3 {[%clk 0:02:56]}  e5 {[%clk 0:02:32]} 13. fxe5 {[%clk 0:02:46]}  Nxe5 {[%clk 0:02:32]} 14. Qc2 {[%clk 0:02:36]}  b5 {[%clk 0:02:15]} 15. a3 {[%clk 0:02:24]}  h5 {[%clk 0:01:53]} 16. b4 {[%clk 0:02:23]}  cxb4 {[%clk 0:01:41]} 17. axb4 {[%clk 0:02:23]}  Nxf3+ {[%clk 0:01:35]} 18. Bxf3 {[%clk 0:02:24]}  Be6 {[%clk 0:01:34]} 19. d4 {[%clk 0:02:16]}  e2 {[%clk 0:01:21]} 20. Bxe2 {[%clk 0:02:05]}  Bxd4+ {[%clk 0:01:20]} 21. Kh1 {[%clk 0:02:01]}  Be5 {[%clk 0:01:21]} 22. Nd2 {[%clk 0:01:47]}  Qc7 {[%clk 0:01:14]} 23. Ra3 {[%clk 0:01:37]}  Bxh2 {[%clk 0:01:09]} 24. Nf3 {[%clk 0:01:38]}  Bg3 {[%clk 0:01:06]} 25. Bxb5 {[%clk 0:01:38]}  Rfd8 {[%clk 0:00:53]} 26. c4 {[%clk 0:01:38]}  Qe7 {[%clk 0:00:51]} 27. c5 {[%clk 0:01:26]}  Rd4 {[%clk 0:00:49]} 28. Rb1 {[%clk 0:01:05]}  Rad8 {[%clk 0:00:42]} 29. Kg1 {[%clk 0:01:05]}  Bg4 {[%clk 0:00:31]} 30. Nxd4 {[%clk 0:01:02]}  Qh4 {[%clk 0:00:19]} 31. Rxg3 {[%clk 0:01:02]}  Qxg3 {[%clk 0:00:19]} 32. Nc6 {[%clk 0:00:54]}  Re8 {[%clk 0:00:14]} 33. Qf2 {[%clk 0:00:53]}  Qc3 {[%clk 0:00:12]} 34. e5 {[%clk 0:00:51]}  Re6 {[%clk 0:00:06]} 35. Nd8 {[%clk 0:00:49]}  Re7 {[%clk 0:00:06]} 36. Rf1 {[%clk 0:00:47]}  Bf5 {[%clk 0:00:04]} 37. Nc6 {[%clk 0:00:44]}  Rd7 {[%clk 0:00:04]} 38. Qf3 {[%clk 0:00:37]}  Qb2 {[%clk 0:00:03]} 39. Rd1 {[%clk 0:00:36]}  Rxd1+ {[%clk 0:00:02]} 40. Qxd1 {[%clk 0:00:35]}  Be4 {[%clk 0:00:02]} 41. Qd8+ {[%clk 0:00:35]}  Kh7 {[%clk 0:00:02]} 42. Qg5 {[%clk 0:00:33]}  Qb1+ {[%clk 0:00:01]} 43. Kh2 {[%clk 0:00:33]}  Qe1 {[%clk 0:00:01]} 44. Nd8 {[%clk 0:00:30]}  Qxb4 {[%clk 0:00:01]} 45. Bc6 {[%clk 0:00:28]} 1-0


[Site "https://www.chess.com"]